bitfinex-derivatives/quotes_ETHF0:USTF0_20260116
["timestamp","ask_amount","ask_price","bid_price","bid_amount"]
[1768584499776,0.006102,3277.4,3275.2,2.97815266]
[1768584500468,0.006102,3277.4,3275.4,0.1527]
[1768584500765,2.87605709,3277.3,3275.4,0.1527]
[1768584501483,2.87605709,3277.3,3275.4,2.98510701]
[1768584503779,0.00366685,3277.3,3275.6,2.83240701]
[1768584503981,0.00366685,3277.3,3275.9,2.83240701]
[1768584505882,2.82799995,3276.9,3274.7,2.83240701]
[1768584507370,3.71829958,3276.8,3274.7,2.83240701]
[1768584507580,2.98063995,3276.8,3274.7,2.83240701]
[1768584509680,3.65600077,3276.7,3274.7,2.83240701]
[1768584509882,2.76496416,3276.6,3274.7,2.83240701]
[1768584511073,2.76496416,3276.3,3274.2,2.77965654]
[1768584511271,2.76496416,3276.3,3273.7,3.17379275]
[1768584511272,2.76496416,3276.3,3274.3,2.77965654]
[1768584512679,2.76496416,3276.3,3274.3,6.43465654]
[1768584512874,2.76496416,3276.1,3274.1,0.15276]
[1768584513384,2.76496416,3275.7,3273.8,2.77965654]
[1768584513580,2.91765416,3275.7,3273.8,2.77965654]
[1768584521892,2.91765416,3275.7,3274.0,2.77965654]
[1768584530003,2.91765416,3275.6,3274.0,2.77965654]
[1768584530391,2.91765416,3275.6,3273.9,0.15277]
[1768584531202,2.91765416,3275.6,3273.9,2.93242654]
[1768584537595,0.15269,3275.6,3273.9,2.93242654]
[1768584537796,2.83513979,3276.1,3273.9,2.93242654]
[1768584537992,3.72745939,3276.0,3273.9,2.93242654]
[1768584538198,0.8923196,3275.9,3273.9,2.93242654]
[1768584538497,0.8923196,3275.8,3273.9,2.93242654]
[1768584540096,3.88013939,3275.8,3273.9,2.93242654]
[1768584540297,2.83513979,3275.6,3273.9,2.93242654]
[1768584542409,0.89500116,3275.5,3273.9,2.93242654]
[1768584542609,2.83513979,3275.6,3273.9,0.15277]
[1768584542807,2.83513979,3275.4,3273.7,1.38384492]
[1768584543198,2.17187169,3276.4,3273.7,1.38384492]
[1768584543199,2.98784979,3275.2,3273.7,1.38384492]
[1768584543507,2.83513979,3275.0,3273.7,0.00304183]
[1768584543806,0.89493049,3274.9,3273.7,0.00304183]
[1768584544211,2.83817058,3275.0,3273.7,0.00304183]
[1768584545007,0.89454163,3274.9,3273.7,0.00304183]
[1768584545198,2.83817058,3275.0,3273.7,0.00304183]
[1768584547511,0.00303079,3275.0,3273.7,2.79824177]
[1768584550813,0.00303079,3275.0,3273.7,0.00304183]
[1768584559329,0.00303079,3275.0,3273.7,2.79824177]
[1768584565535,0.15268,3276.0,3274.1,2.65638779]
[1768584565827,0.89455596,3275.9,3274.1,2.65638779]
[1768584566028,0.89455596,3275.8,3274.1,2.65638779]
[1768584566225,2.72393495,3276.0,3274.1,2.65638779]
[1768584566426,0.89440375,3275.9,3274.1,2.65638779]
[1768584566626,0.89438784,3275.8,3274.1,2.80914779]
[1768584566933,2.72749938,3276.0,3274.1,2.80914779]
[1768584567129,3.46565884,3275.9,3274.1,2.80914779]
[1768584567330,0.89440389,3275.8,3274.1,2.80914779]
[1768584567525,2.57125495,3275.9,3274.1,2.80914779]
[1768584567727,0.89428567,3275.8,3274.1,2.80914779]
[1768584567926,2.57125495,3275.9,3274.1,2.80914779]
[1768584568130,0.89429995,3275.8,3274.1,2.80914779]
[1768584568336,2.57125495,3275.9,3274.1,2.80914779]
[1768584568636,2.72394495,3275.7,3273.7,6.28242962]
[1768584568828,2.57125495,3275.5,3273.7,6.28242962]
[1768584569029,2.52647832,3275.3,3273.7,6.28242962]
[1768584572140,2.52647832,3275.3,3273.7,2.65942962]
[1768584572342,2.52647832,3275.3,3273.8,3.628]
[1768584572543,2.52647832,3275.3,3273.7,2.65942962]
[1768584572741,2.52647832,3275.3,3273.7,3.63304183]
[1768584572937,2.52647832,3275.1,3273.7,0.00304183]
[1768584573443,2.52647832,3275.1,3273.9,1.24452515]
[1768584574345,2.52647832,3275.1,3274.2,1.24452515]
[1768584574534,0.15271,3275.3,3274.2,1.24452515]
[1768584574735,2.52647832,3275.5,3274.6,1.24452515]
[1768584574936,0.89472489,3275.4,3274.6,1.24452515]
[1768584575244,2.52647832,3275.5,3274.6,1.24452515]
[1768584575435,0.89486553,3275.4,3273.8,2.48296858]
[1768584575632,0.15268,3275.9,3274.0,2.48296858]
[1768584575839,0.89489216,3275.8,3274.3,2.48296858]
[1768584576143,0.89489216,3275.7,3274.3,2.48296858]
[1768584576333,0.15268,3275.9,3274.3,2.48296858]
[1768584576530,0.89513866,3275.8,3274.3,2.48296858]
[1768584576736,0.89513866,3275.7,3274.3,2.48296858]
[1768584576947,0.15268,3275.9,3274.3,2.48296858]
[1768584577148,0.8951512,3275.8,3274.3,2.48296858]
[1768584577447,0.15268,3275.9,3274.3,2.48296858]
[1768584577634,0.89520744,3275.8,3274.3,2.48296858]
[1768584577838,0.15268,3275.9,3274.3,2.48296858]
[1768584578038,0.89520602,3275.8,3274.3,2.48296858]
[1768584578346,0.15268,3275.9,3274.3,2.48296858]
[1768584578541,0.89512121,3275.8,3274.3,2.48296858]
[1768584578736,2.53004275,3276.0,3274.3,2.48296858]
[1768584578933,0.89515693,3275.9,3274.3,2.48296858]
[1768584579135,2.53004275,3276.0,3274.3,2.48296858]
[1768584579339,0.89510468,3275.9,3274.3,2.48296858]
[1768584579540,2.53004275,3276.0,3274.3,2.48296858]
[1768584579752,0.8951122,3275.9,3274.3,2.48296858]
[1768584579948,2.53004275,3276.0,3274.3,2.48296858]
[1768584580151,0.89512236,3275.9,3274.3,2.48296858]
[1768584580352,2.53004275,3276.0,3274.3,2.48296858]
[1768584580556,0.89503352,3275.9,3274.3,2.48296858]
[1768584580849,2.53004275,3276.0,3274.3,2.48296858]
[1768584581052,0.89503431,3275.9,3274.3,2.48296858]
[1768584581248,2.53004275,3276.0,3274.3,2.48296858]
[1768584581453,0.8949508,3275.9,3274.3,2.48296858]
[1768584581642,2.53004275,3276.0,3274.3,2.48296858]
[1768584581843,0.89494973,3275.9,3274.3,2.48296858]
[1768584582040,2.53004275,3276.0,3274.3,2.48296858]
[1768584582239,0.89487974,3275.9,3274.3,2.48296858]
[1768584582445,2.53004275,3276.0,3274.3,2.48296858]
[1768584582745,0.89487965,3275.9,3274.3,2.48296858]
[1768584582940,2.53004275,3276.0,3274.3,2.48296858]
[1768584583145,0.89487909,3275.9,3274.3,2.48296858]
[1768584583444,2.52647832,3275.9,3274.3,2.48296858]
[1768584593857,0.00356443,3276.0,3274.3,2.48296858]
[1768584594058,0.89511859,3275.9,3274.3,2.48296858]
[1768584594259,0.00356443,3276.0,3274.3,2.48296858]
[1768584594462,0.89515727,3275.9,3274.6,2.46802228]
[1768584594762,0.00356443,3276.0,3274.6,2.62076228]
[1768584595350,0.00356443,3276.0,3275.4,1.24339505]
[1768584596272,0.00356443,3276.0,3275.2,1.24339505]
[1768584600265,1.24339505,3275.6,3274.2,2.46802228]
[1768584600559,1.24339505,3275.5,3274.2,2.46802228]
[1768584600759,2.6234953,3275.7,3274.3,1.24339505]
[1768584600972,0.15268,3275.9,3274.8,1.24339505]
[1768584601156,0.8950183,3275.8,3274.8,1.24339505]
[1768584601356,2.62705973,3276.0,3274.8,1.24339505]
[1768584601558,0.00356443,3276.0,3275.1,1.24339505]
[1768584601958,0.00356443,3276.0,3274.8,1.24339505]
[1768584602166,2.6234953,3275.8,3274.4,1.24339505]
[1768584602361,1.24339505,3275.2,3273.9,0.15277]
[1768584602565,1.24339505,3275.4,3274.0,1.24339505]
[1768584602763,0.15623443,3276.0,3274.6,1.24339505]
[1768584602962,0.89508021,3275.9,3274.6,1.24339505]
[1768584603168,0.89529214,3275.8,3274.6,1.24339505]
[1768584603357,2.77972973,3276.0,3274.6,1.24339505]
[1768584603557,3.51885199,3275.9,3274.6,1.24339505]
[1768584603757,0.89535669,3275.8,3274.1,2.62078228]
[1768584603957,2.6234953,3275.9,3274.6,1.24339505]
[1768584604469,2.6234953,3275.9,3274.9,1.24339505]
[1768584605268,0.89797984,3275.8,3274.9,1.24339505]
[1768584605570,2.6234953,3275.9,3274.9,1.24339505]
[1768584605970,0.89786964,3275.8,3274.9,1.24339505]
[1768584606268,2.6234953,3275.9,3274.9,1.24339505]
[1768584606463,0.89787629,3275.8,3274.9,1.24339505]
[1768584606663,2.6234953,3275.9,3274.9,1.24339505]
[1768584606970,0.89791114,3275.8,3274.6,1.24339505]
[1768584607169,2.6234953,3275.9,3274.6,1.24339505]
[1768584607465,0.8979289,3275.8,3274.6,1.24339505]
[1768584607670,3.86689035,3275.8,3274.6,1.24339505]
[1768584607875,2.6234953,3275.6,3274.3,1.24339505]
[1768584608365,1.24339505,3275.8,3274.3,1.24339505]
[1768584608566,0.89790777,3275.7,3274.6,1.24339505]
[1768584608868,2.77972973,3276.0,3274.6,1.24339505]
[1768584609069,0.89791162,3275.9,3274.6,1.24339505]
[1768584609268,0.89791162,3275.8,3274.6,1.24339505]
[1768584609566,0.89791162,3275.7,3274.6,1.24339505]
[1768584609770,2.6234953,3275.9,3274.6,1.24339505]
[1768584609956,0.89792152,3275.8,3274.6,1.24339505]
[1768584610161,0.89792152,3275.7,3274.6,1.24339505]
[1768584610357,2.6234953,3275.9,3274.6,1.24339505]
[1768584610562,0.89785276,3275.8,3274.6,1.24339505]
[1768584610856,0.89785276,3275.7,3274.6,1.24339505]
[1768584611061,2.6234953,3275.9,3274.6,1.24339505]
[1768584611267,0.89783091,3275.8,3274.6,1.24339505]
[1768584611468,0.89783091,3275.7,3274.6,1.24339505]
[1768584611668,2.6234953,3275.9,3274.6,1.24339505]
[1768584611870,0.89782239,3275.8,3274.7,1.24339505]
[1768584612070,0.89782239,3275.7,3274.7,1.24339505]
[1768584612269,2.6234953,3275.9,3274.7,1.24339505]
[1768584612469,0.89780266,3275.8,3274.7,1.24339505]
[1768584612771,0.15623443,3276.0,3274.9,1.24339505]
[1768584612968,0.89780866,3275.9,3274.9,1.24339505]
[1768584613268,0.15623443,3276.0,3275.5,1.24339505]
[1768584613269,0.00356443,3276.0,3275.5,1.24339505]
[1768584613475,0.00356443,3276.0,3275.2,1.24339505]
[1768584614966,2.6234953,3276.7,3275.5,1.24339505]
[1768584615167,0.89965537,3276.6,3275.5,1.24339505]
[1768584615476,0.89965537,3276.5,3275.5,1.24339505]
[1768584615770,0.89965537,3276.4,3275.3,1.24339505]
[1768584615969,0.00364271,3276.4,3275.3,1.24339505]
[1768584618975,0.00364271,3276.4,3274.3,44.63320921]
[1768584618976,0.00364271,3276.4,3275.7,1.24339505]
[1768584619180,2.6234953,3277.1,3276.0,1.24339505]
[1768584619381,0.89875271,3277.0,3276.0,1.24339505]
[1768584619580,0.006102,3277.4,3276.2,1.24339505]
[1768584619881,0.89882369,3277.3,3276.2,1.24339505]
[1768584620082,0.89882369,3277.2,3276.2,1.24339505]
[1768584620281,0.89882369,3277.1,3276.2,1.24339505]
[1768584620585,0.00313331,3277.1,3276.2,1.24600848]
[1768584621178,0.00313331,3277.1,3276.6,1.24339505]
[1768584621377,0.006102,3277.4,3277.0,1.24339505]
[1768584621580,2.5789822,3278.0,3277.0,1.24339505]
[1768584622385,0.00300022,3278.0,3277.3,1.24339505]
[1768584623287,0.00300022,3278.0,3277.0,3.79023828]
[1768584629594,0.00300022,3278.0,3276.6,2.49296079]
[1768584629799,2.40789628,3278.0,3276.2,2.49557422]
[1768584630307,2.40789628,3278.0,3276.4,1.24184206]
[1768584631398,0.00300022,3278.0,3276.5,2.49296079]
[1768584632203,2.40789628,3278.0,3276.5,2.49296079]
[1768584632502,2.40789628,3278.0,3276.2,0.00261343]
[1768584632694,2.40789628,3278.0,3276.2,2.49557422]
[1768584636907,2.40489606,3277.8,3276.2,0.00261343]
[1768584637810,2.40489606,3277.6,3276.2,0.00261343]
[1768584640601,2.40489606,3277.2,3275.2,2.49296079]
[1768584640798,2.55751606,3277.2,3275.2,2.49296079]
[1768584641709,2.55751606,3277.2,3275.2,2.49558152]
[1768584646420,2.55751606,3277.1,3275.2,2.49558152]
[1768584650313,2.55751606,3277.1,3275.5,1.24184206]
[1768584651320,2.55751606,3277.1,3275.2,2.49558152]
[1768584652421,2.55751606,3277.1,3275.2,2.64829152]
[1768584652625,2.55751606,3277.1,3275.4,2.44731213]
[1768584652812,2.55751606,3277.1,3275.6,1.24184206]
[1768584653217,0.15263,3277.0,3275.6,1.24184206]
[1768584654021,0.15263,3277.0,3275.4,2.44731213]
[1768584655126,2.68608413,3277.0,3275.4,2.44731213]
[1768584657526,2.68609413,3276.8,3275.2,0.00262073]
[1768584662035,2.53345413,3276.4,3275.2,0.00262073]
[1768584662233,0.15265,3276.5,3275.2,0.00262073]
[1768584664428,2.53345413,3277.0,3275.4,2.44731213]
[1768584664619,0.89626066,3276.9,3275.4,2.44731213]
[1768584664821,2.53345413,3277.0,3275.4,2.44731213]
[1768584665221,0.89652775,3276.9,3275.4,2.44731213]
[1768584665528,2.53345413,3277.0,3275.4,2.44731213]
[1768584665727,0.89682686,3276.9,3275.4,2.44731213]
[1768584665919,2.53345413,3277.0,3275.4,2.44731213]
[1768584666121,0.89685141,3276.9,3275.4,2.44731213]
[1768584666432,2.53345413,3277.0,3275.4,2.44731213]
[1768584666732,0.89751201,3276.9,3275.4,2.44731213]
[1768584666926,2.53345413,3277.0,3275.4,2.44731213]
[1768584667132,0.15262,3277.1,3275.7,1.24184206]
[1768584667434,0.89790354,3277.0,3275.4,2.44731213]
[1768584667633,0.15262,3277.1,3275.4,2.44731213]
[1768584667826,0.89790121,3277.0,3275.4,2.44731213]
[1768584668026,0.15262,3277.1,3275.4,2.44731213]
[1768584668326,0.89791465,3277.0,3275.4,2.44731213]
[1768584668629,0.15262,3277.1,3275.4,2.44731213]
[1768584668824,0.89814775,3277.0,3275.4,2.44731213]
[1768584669016,0.15262,3277.1,3275.4,2.44731213]
[1768584669223,0.89833256,3277.0,3275.4,2.44731213]
[1768584669419,0.89833256,3276.9,3275.4,2.44731213]
[1768584669623,2.53345413,3276.3,3275.2,0.00262073]
[1768584670631,2.53345413,3276.7,3275.2,0.00262073]
[1768584670834,0.8984192,3276.6,3275.3,1.24184206]
[1768584671131,0.8984192,3276.6,3275.2,2.44993286]
[1768584671132,2.53345413,3276.7,3275.2,2.44993286]
[1768584671330,0.89839919,3276.6,3275.2,2.44993286]
[1768584671638,2.53345413,3276.7,3275.2,2.44993286]
[1768584671837,0.89839283,3276.6,3275.2,2.44993286]
[1768584672038,2.53345413,3276.7,3275.2,2.44993286]
[1768584672338,0.89834728,3276.6,3275.2,2.44993286]
[1768584672525,0.15263,3277.0,3275.2,2.44993286]
[1768584672722,0.89840076,3276.9,3275.2,3.69177492]
[1768584672926,0.89840076,3276.8,3275.2,3.69177492]
[1768584673137,0.89840076,3276.7,3275.2,3.69177492]
[1768584673440,0.15263,3277.0,3275.3,2.44731213]
[1768584673634,0.89847847,3276.9,3275.3,2.44731213]
[1768584673844,4.70532582,3278.1,3276.3,2.44731213]
[1768584674139,2.53345413,3278.1,3276.6,1.24184206]
[1768584675141,2.53345413,3278.5,3276.6,3.68915419]
[1768584675347,2.53345413,3278.5,3276.7,2.44731213]
[1768584676031,2.53345413,3278.5,3276.4,0.15265]
[1768584676231,2.53645435,3278.0,3276.4,0.15265]
[1768584676445,2.53645435,3278.0,3276.2,5.50131213]
[1768584676629,2.53645435,3278.0,3276.2,8.74731213]
[1768584677040,0.00300022,3278.0,3276.9,1.24184206]
[1768584677738,0.00300022,3278.0,3276.9,3.68915419]
[1768584678043,2.68598413,3279.0,3277.1,1.24184206]
[1768584678732,2.53345413,3279.0,3277.1,1.24184206]
[1768584679042,2.53691379,3279.0,3277.2,2.44731213]
[1768584680234,2.53691379,3279.0,3277.0,0.15263]
[1768584681541,2.40295268,3278.8,3276.7,2.44731213]
[1768584681843,2.40295268,3278.8,3276.9,1.24184206]
[1768584682030,2.40295268,3278.8,3277.0,2.40189482]
[1768584683236,0.00345966,3279.0,3277.3,3.64373688]
[1768584683637,0.00345966,3279.0,3277.4,2.40189482]
[1768584683960,0.00345966,3279.0,3277.7,1.24184206]
[1768584684140,0.00345966,3279.0,3277.7,1.24438507]
[1768584684940,0.00345966,3279.0,3277.7,3.64627989]
[1768584685331,0.00345966,3279.0,3278.1,1.24125705]
[1768584685534,0.00345966,3279.0,3277.7,2.40443783]
[1768584685730,0.00345966,3279.0,3278.0,1.24125705]
[1768584687348,1.24125705,3278.5,3277.7,0.00254301]
[1768584687547,0.00345966,3279.0,3277.7,1.24380006]
[1768584687850,0.00345966,3279.0,3277.9,1.24125705]
[1768584688046,0.00345966,3279.0,3278.1,1.24125705]
[1768584688250,0.00345966,3279.0,3277.8,2.40189482]
[1768584688251,0.00345966,3279.0,3278.4,1.24125705]
[1768584688843,0.00345966,3279.0,3278.1,1.24125705]
[1768584689850,0.00345966,3279.0,3278.3,1.24125705]
[1768584690033,2.41429099,3279.9,3278.6,1.24125705]
[1768584690239,0.88758258,3279.8,3278.6,1.24125705]
[1768584690439,1.24125705,3279.8,3278.4,1.24125705]
[1768584691149,1.24492311,3279.8,3278.4,1.24125705]
[1768584692448,0.00366606,3279.8,3278.4,1.24125705]
[1768584693549,0.00366606,3279.8,3278.0,2.34348501]
[1768584695744,0.00366606,3279.8,3278.1,3.55]
[1768584695944,0.00366606,3279.8,3278.1,5.89348501]
[1768584696246,0.00366606,3279.8,3278.2,2.34348501]
[1768584697359,0.00366606,3279.8,3278.2,2.49605501]
[1768584699447,0.00366606,3279.8,3278.4,2.34348501]
[1768584700448,0.00366606,3279.8,3278.4,3.561]
[1768584700449,2.41795705,3279.8,3278.4,3.561]
[1768584702549,2.41795705,3279.8,3278.4,3.562]
[1768584703956,0.00366606,3279.8,3278.4,3.562]
[1768584705862,0.00366606,3279.8,3278.4,5.90548501]
[1768584706651,0.00366606,3279.8,3278.5,2.34348501]
[1768584707064,0.00366606,3279.8,3278.6,3.567]
[1768584707564,0.00366606,3279.8,3278.7,2.34348501]
[1768584708762,0.00366606,3279.8,3278.8,3.566]
[1768584709463,0.00366606,3279.8,3278.8,5.90948501]
[1768584709766,4.12529099,3281.1,3278.9,2.34348501]
[1768584710059,2.41429099,3280.9,3278.9,2.34348501]
[1768584710261,1.04323731,3280.8,3279.0,5.90748501]
[1768584710462,0.89078731,3280.7,3279.0,5.90748501]
[1768584710661,0.89078731,3280.6,3279.0,5.90748501]
[1768584710849,0.89078731,3280.5,3279.1,2.34348501]
[1768584711164,0.00330284,3280.6,3279.1,2.49601501]
[1768584712353,0.00330284,3280.6,3279.3,2.49756689]
[1768584712857,2.41429099,3281.3,3279.4,2.49756689]
[1768584713057,0.89059714,3281.2,3279.4,2.49756689]
[1768584713251,2.41429099,3281.3,3279.4,2.49756689]
[1768584713458,0.89033694,3281.2,3280.0,1.23982983]
[1768584713764,2.41429099,3281.3,3280.0,1.23982983]
[1768584713974,2.13016816,3281.2,3280.0,0.00221493]
[1768584714257,2.13016816,3281.2,3279.2,0.15252]
[1768584714258,1.23982983,3280.4,3279.2,3.495]
[1768584714452,1.23982983,3280.4,3279.0,3.73739672]
[1768584714657,1.23982983,3280.4,3279.1,3.56]
[1768584714863,1.23982983,3280.6,3279.2,1.23982983]
[1768584715256,1.23982983,3280.6,3279.2,0.0035793]
[1768584715754,1.39228983,3280.6,3279.2,0.0035793]
[1768584715956,1.23982983,3280.4,3279.2,0.0035793]
[1768584716763,1.39228983,3280.6,3279.2,1.24340913]
[1768584717469,1.23982983,3280.6,3279.2,1.24340913]
[1768584718467,3.79911751,3280.6,3279.2,1.24340913]
[1768584720677,1.23982983,3280.2,3279.2,0.0035793]
[1768584720877,1.23982983,3280.0,3279.2,0.0035793]
[1768584721668,2.55928768,3279.9,3278.0,2.49756689]
[1768584721872,3.79911751,3279.8,3278.3,1.23982983]
[1768584722074,1.23982983,3279.4,3277.9,1.23982983]
[1768584722266,3.79911751,3279.4,3278.0,1.23982983]
[1768584722465,3.79911751,3279.4,3278.2,1.23982983]
[1768584722666,3.79911751,3279.4,3278.2,1.24208855]
[1768584722873,1.23982983,3279.7,3278.2,1.24208855]
[1768584723276,2.71178768,3279.8,3278.2,0.00225872]
[1768584723460,3.44848736,3279.7,3278.2,0.00225872]
[1768584723666,2.55928768,3279.7,3278.2,0.00225872]
[1768584730081,2.55928768,3279.5,3278.2,0.00225872]
[1768584732982,2.55928768,3279.9,3278.2,2.65239561]
[1768584733281,0.15248,3280.2,3278.5,4.28475008]
[1768584733488,2.55928768,3280.3,3278.5,4.28475008]
[1768584733788,2.55928768,3280.3,3278.6,2.65011689]
[1768584734083,2.55928768,3280.3,3278.6,6.19011689]
[1768584734889,0.15245,3280.7,3278.7,2.49756689]
[1768584735078,2.71173768,3280.7,3278.7,2.49756689]
[1768584742294,2.55928768,3280.7,3279.0,2.53608625]
[1768584742497,2.38266962,3281.1,3279.1,2.38355625]
[1768584743101,2.38266962,3281.1,3279.3,2.53607625]
[1768584743297,2.38266962,3281.1,3279.8,1.23993711]
[1768584744003,2.38266962,3281.1,3279.9,1.23993711]
[1768584744307,2.38266962,3281.1,3280.2,1.23993711]
[1768584744508,0.00219054,3281.3,3280.2,1.23993711]
[1768584745409,0.00219054,3281.3,3279.7,1.23972816]
[1768584748305,2.38266962,3281.2,3278.6,2.38355625]
[1768584748511,2.38266962,3281.1,3279.1,2.53608625]
[1768584749112,2.38266962,3281.1,3279.2,3.556]
[1768584750613,2.38266962,3281.1,3279.2,3.70852]
[1768584751413,2.38266962,3281.1,3279.2,6.1961728]
[1768584751915,2.38266962,3281.1,3279.4,1.23972816]
[1768584752413,2.38266962,3281.1,3279.4,4.79172816]
[1768584752808,2.38266962,3281.1,3279.4,1.23972816]
[1768584755005,2.49110456,3280.6,3278.8,2.4876528]
[1768584755410,2.49110456,3280.1,3278.4,2.4876528]
[1768584755912,2.49110456,3280.1,3278.2,3.55125872]
[1768584756110,2.49110456,3280.1,3278.2,6.03891152]
[1768584756504,2.49110456,3280.1,3278.2,2.48991152]
[1768584756708,2.49110456,3280.1,3278.3,3.55]
[1768584757614,2.49110456,3280.1,3278.2,2.48991152]
[1768584757818,2.49110456,3280.1,3278.3,3.553]
[1768584759122,2.49110456,3280.1,3278.3,3.556]
[1768584759315,0.15249,3280.0,3278.2,2.48991152]
[1768584759506,2.49110456,3279.7,3278.2,0.00225872]
[1768584762114,2.64360456,3279.7,3278.2,0.00225872]
[1768584762420,0.15244,3281.2,3279.5,1.23972816]
[1768584762919,2.4932951,3281.3,3279.5,2.4876528]
[1768584763221,0.00219054,3281.3,3279.8,2.4876528]
[1768584763523,0.00219054,3281.3,3279.9,6.0446528]
[1768584764018,0.00219054,3281.3,3280.0,3.556]
[1768584765212,2.49110456,3282.4,3280.1,2.4876528]
[1768584765409,2.49110456,3282.2,3280.1,2.4876528]
[1768584765622,2.49110456,3282.0,3280.1,2.4876528]
[1768584766322,2.49325187,3282.0,3280.1,2.4876528]
[1768584767131,0.00214731,3282.0,3280.1,2.4876528]
[1768584767719,0.00214731,3282.0,3280.1,2.6401328]
[1768584769031,0.00214731,3282.0,3280.2,3.559]
[1768584769222,0.00214731,3282.0,3280.2,6.0466528]
[1768584770254,0.00214731,3282.0,3280.3,2.4876528]
[1768584770535,0.00214731,3282.0,3280.3,6.0496528]
[1768584772137,0.00214731,3282.0,3280.4,3.564]
[1768584772328,0.00214731,3282.0,3280.4,5.93508384]
[1768584772527,0.00214731,3282.0,3280.5,2.37108384]
[1768584772828,0.00214731,3282.0,3280.5,2.37501911]
[1768584773629,2.60373799,3282.0,3280.5,0.00393527]
[1768584774026,0.89119154,3281.9,3280.5,0.00393527]
[1768584774335,2.60159068,3281.9,3280.5,0.00393527]
[1768584774827,1.04354739,3281.8,3280.5,0.00393527]
[1768584775030,2.60159068,3281.5,3280.5,0.00393527]
[1768584777234,2.60159068,3281.3,3279.5,3.56]
[1768584777717,2.60159068,3281.3,3279.1,2.37108384]
[1768584777923,2.60159068,3281.1,3279.2,3.558]
[1768584778233,2.60159068,3281.1,3279.2,3.56109111]
[1768584778526,2.60159068,3281.1,3279.3,2.37108384]
[1768584779125,0.15243,3281.3,3279.3,2.52360384]
[1768584779731,2.60159068,3281.6,3279.5,2.37108384]
[1768584779928,0.8912758,3281.5,3279.5,2.37108384]
[1768584780135,0.8912758,3281.4,3279.5,2.37108384]
[1768584780331,2.60159068,3281.6,3279.5,2.37108384]
[1768584780524,0.89116266,3281.5,3279.5,2.37108384]
[1768584780725,0.89116266,3281.4,3279.5,2.37108384]
[1768584780924,2.75400068,3281.6,3279.5,2.37108384]
[1768584781134,0.89124476,3281.5,3279.5,2.37108384]
[1768584781333,0.89124476,3281.4,3279.7,2.37108384]
[1768584781630,2.60373799,3282.0,3279.9,2.52357384]
[1768584781835,0.89140031,3281.9,3279.9,2.52357384]
[1768584782035,0.89140031,3281.8,3280.0,2.37108384]
[1768584782237,2.60373799,3282.0,3280.0,2.37108384]
[1768584782432,2.60159068,3281.8,3280.0,5.92508384]
[1768584783031,2.60159068,3281.8,3280.1,2.37108384]
[1768584784433,0.1524,3281.9,3280.2,5.92708384]
[1768584784636,0.00214731,3282.0,3280.3,2.37108384]
[1768584785438,0.00214731,3282.0,3280.3,2.52355384]
[1768584785634,0.00214731,3282.0,3280.4,3.559]
[1768584786035,0.00214731,3282.0,3280.5,3.559]
[1768584786234,0.00214731,3282.0,3280.6,3.559]
[1768584786540,0.00214731,3282.0,3280.3,2.52355384]
[1768584786742,0.00214731,3282.0,3280.6,3.558]
[1768584787837,0.00214731,3282.0,3280.6,5.92908384]
[1768584788738,0.00214731,3282.0,3280.7,2.37108384]
[1768584790444,0.00214731,3282.0,3280.2,2.37108384]
[1768584790641,0.00214731,3282.0,3280.3,3.554]
[1768584791245,0.00214731,3282.0,3280.3,5.92508384]
[1768584791846,0.00214731,3282.0,3280.3,2.37108384]
[1768584792044,0.00214731,3282.0,3280.4,3.556]
[1768584793943,2.60373799,3282.0,3280.3,2.37108384]
[1768584794137,2.60373799,3282.0,3280.2,3.70748]
[1768584794338,2.60159068,3281.8,3280.2,3.70748]
[1768584795042,2.60159068,3281.8,3280.2,0.15248]
[1768584795247,2.60159068,3281.8,3280.3,3.556]
[1768584795550,2.60159068,3281.8,3280.2,0.15248]
[1768584795848,2.60159068,3281.8,3280.3,3.557]
[1768584796548,2.60159068,3281.8,3279.9,2.37108384]
[1768584796748,2.60159068,3281.8,3280.0,3.559]
[1768584797734,0.15453731,3282.0,3280.1,2.37108384]
[1768584797949,0.00214731,3282.0,3280.3,2.52355384]
[1768584800854,0.00214731,3282.0,3280.3,6.07855384]
[1768584801048,0.00214731,3282.0,3280.4,2.37108384]
[1768584802447,0.00214731,3282.0,3280.4,5.92408384]
[1768584802955,0.00214731,3282.0,3280.5,2.55568431]
[1768584803258,0.00214731,3282.0,3280.7,2.55568431]
[1768584804852,0.00214731,3282.0,3280.8,0.15245]
[1768584805057,0.00214731,3282.0,3280.8,2.70813431]
[1768584805449,0.00214731,3282.0,3280.4,3.55]
[1768584805659,0.00214731,3282.0,3280.3,6.10568431]
[1768584805954,2.46778376,3282.0,3280.3,2.55568431]
[1768584808851,2.46778376,3282.0,3280.3,6.10768431]
[1768584809357,2.46778376,3282.0,3280.3,2.55568431]
[1768584809558,2.46778376,3282.0,3280.3,6.10868431]
[1768584811063,2.46778376,3282.0,3280.3,6.11368431]
[1768584813062,2.46778376,3282.0,3280.3,2.55568431]
[1768584813257,2.46778376,3282.0,3280.2,0.15248]
[1768584813560,2.46778376,3282.0,3280.2,3.71548]
[1768584814060,3.33290335,3281.9,3280.2,3.71548]
[1768584814259,2.43854312,3281.9,3280.2,6.30344677]
[1768584820056,2.43854312,3281.9,3280.3,2.58796677]
[1768584820462,2.43854312,3281.9,3280.3,6.15696677]
[1768584820652,2.59094312,3281.9,3280.3,6.15696677]
[1768584823265,2.59094312,3281.9,3280.4,2.58796677]
[1768584825366,2.59094312,3281.9,3280.2,0.15248]
[1768584825568,2.43854312,3281.7,3280.3,3.576]
[1768584827261,2.43854312,3281.7,3280.7,1.23937969]
[1768584827769,0.1524,3281.9,3280.7,1.23937969]
[1768584827957,0.89287879,3281.8,3280.9,1.23937969]
[1768584828159,0.00214731,3282.0,3281.3,1.23937969]
[1768584828756,0.00214731,3282.0,3281.0,1.23937969]
[1768584829365,0.00214731,3282.0,3280.8,1.23937969]
[1768584835275,0.89361667,3281.9,3280.5,2.58796677]
[1768584835575,0.00214731,3282.0,3281.4,1.23937969]
[1768584836068,0.00214731,3282.0,3281.2,1.23937969]
[1768584836772,0.00214731,3282.0,3281.1,1.23937969]
[1768584837578,0.00214731,3282.0,3280.6,1.23937969]
[1768584837769,1.241527,3282.0,3280.6,1.23937969]
[1768584838169,0.00214731,3282.0,3280.8,1.23937969]
[1768584841877,0.00214731,3282.0,3280.4,2.53946041]
[1768584842082,0.00214731,3282.0,3280.8,1.23937969]
[1768584843280,0.00214731,3282.0,3280.4,2.53946041]
[1768584843475,0.00214731,3282.0,3280.9,1.23937969]
[1768584844374,0.00214731,3282.0,3281.2,1.23937969]
[1768584848684,1.23937969,3281.9,3280.3,2.53946041]
[1768584848884,1.23937969,3281.9,3280.6,1.23937969]
[1768584849889,1.23937969,3281.5,3280.3,2.53946041]
[1768584850093,1.23937969,3281.5,3280.3,1.23937969]
[1768584850489,0.15241,3281.6,3280.3,1.23937969]
[1768584851492,1.23937969,3281.5,3280.3,1.23937969]
[1768584851893,0.15241,3281.6,3280.3,1.23937969]
[1768584852093,0.15241,3281.6,3280.5,1.23937969]